bitfinex-derivatives/quotes_ETHF0:USTF0_20241027
["timestamp","ask_amount","ask_price","bid_price","bid_amount"]
[1730070476400,0.39688,2522.6,2522.5,0.39687]
[1730070476599,0.3969,2522.5,2522.4,0.39688]
[1730070476788,1.54048678,2522.5,2522.4,0.39688]
[1730070477095,0.39688,2522.5,2522.4,1.54046678]
[1730070478498,0.39688,2522.5,2522.4,0.39688]
[1730070479998,0.39688,2522.6,2522.5,0.39687]
[1730070480203,0.4178,2523.0,2522.5,0.99222]
[1730070480392,0.81461,2523.0,2522.9,0.39682]
[1730070480898,7.07230268,2523.1,2522.7,0.99213]
[1730070481097,7.07230268,2523.1,2523.0,0.3968]
[1730070481601,0.39681,2523.0,2522.9,0.39681]
[1730070482095,0.39681,2523.0,2522.4,4.20002]
[1730070482096,0.4192,2523.0,2522.4,4.20002]
[1730070482299,0.39684,2522.8,2522.7,0.39685]
[1730070483097,0.39686,2522.7,2522.6,0.39685]
[1730070484498,0.39687,2522.6,2522.5,1.25957]
[1730070485795,0.39687,2522.6,2522.5,0.83447]
[1730070486699,2.47870268,2522.9,2522.5,0.4376]
[1730070486908,0.39686,2522.7,2522.6,0.39684]
[1730070489706,0.39684,2522.8,2522.7,0.39684]
[1730070490004,0.39686,2522.7,2522.6,0.39686]
[1730070492705,0.39685,2522.8,2522.7,0.39684]
[1730070493210,0.39686,2522.7,2522.6,0.39685]
[1730070494712,2.47870268,2522.9,2522.5,0.4376]
[1730070495007,2.47870268,2522.9,2522.5,0.83448]
[1730070495008,0.82547,2522.6,2522.5,0.83448]
[1730070498702,0.39686,2522.7,2522.6,0.39687]
[1730070498912,0.39685,2522.8,2522.7,0.39684]
[1730070499599,0.39685,2522.8,2522.5,1.42981]
[1730070499600,6.51212268,2522.9,2522.8,0.39684]
[1730070499801,3.30432268,2522.9,2522.8,0.39684]
[1730070500003,2.90750268,2522.9,2522.8,0.39684]
[1730070500310,0.959,2522.9,2522.8,3.964]
[1730070500612,0.959,2522.9,2522.8,4.36084]
[1730070500905,0.959,2522.9,2522.8,4.80864]
[1730070501107,0.39679,2523.1,2522.8,4.4118]
[1730070501311,1.35579,2523.1,2523.0,0.3968]
[1730070503005,0.959,2523.1,2523.0,0.3968]
[1730070503607,0.39678,2523.2,2523.1,0.39679]
[1730070503813,0.959,2523.1,2523.0,0.39679]
[1730070504809,1.35579,2523.1,2523.0,0.39679]
[1730070505205,3.43770268,2523.1,2522.8,0.4478]
[1730070505513,2.87552268,2522.9,2522.8,0.84463]
[1730070505900,6.44270268,2522.9,2522.6,3.2078]
[1730070506104,0.39685,2522.7,2522.6,3.60467]
[1730070506508,1.54087954,2522.7,2522.6,0.39687]
[1730070508414,0.39685,2522.7,2522.6,0.39687]
[1730070511510,0.39687,2522.6,2522.5,0.4376]
[1730070511820,2.87539901,2522.6,2522.5,0.4376]
[1730070512114,3.83439901,2522.6,2522.5,0.4376]
[1730070512418,4.27859901,2522.6,2522.5,0.4376]
[1730070512613,4.27859901,2522.6,2522.5,0.83448]
[1730070512914,4.27859901,2522.6,2522.5,0.4376]
[1730070514415,4.27859901,2522.6,2522.5,0.83448]
[1730070514717,4.27859901,2522.6,2522.5,0.4376]
[1730070515315,4.27859901,2522.6,2522.5,0.83448]
[1730070515913,4.27859901,2522.6,2522.5,0.4376]
[1730070516311,0.99201,2523.1,2522.5,0.4376]
[1730070516312,3.2078,2523.3,2522.5,0.4376]
[1730070516520,0.39679,2523.1,2523.0,0.3968]
[1730070516715,2.47852901,2523.1,2522.8,0.449]
[1730070516917,2.47852901,2523.1,2523.0,0.3968]
[1730070517221,2.87531901,2523.1,2523.0,0.3968]
[1730070517920,3.83431901,2523.1,2523.0,0.3968]
[1730070518218,3.43752901,2523.1,2523.0,0.3968]
[1730070518423,3.83431901,2523.1,2523.0,0.3968]
[1730070519424,3.43752901,2523.1,2523.0,0.3968]
[1730070520015,3.83431901,2523.1,2523.0,0.3968]
[1730070522124,2.87531901,2523.1,2523.0,0.3968]
[1730070522315,3.43752901,2523.1,2523.0,0.3968]
[1730070522829,3.83431901,2523.1,2523.0,0.3968]
[1730070525126,0.959,2523.1,2523.0,0.3968]
[1730070525926,0.4432,2523.5,2523.4,0.39674]
[1730070526120,3.2078,2523.6,2523.5,0.39673]
[1730070526121,4.1398,2523.6,2523.5,0.39673]
[1730070526428,0.932,2523.6,2523.5,0.39673]
[1730070527330,0.932,2523.6,2523.5,0.83053]
[1730070529227,12.5648,2523.9,2523.5,0.4338]
[1730070529524,0.3967,2523.7,2523.6,0.39669]
[1730070531029,0.932,2523.8,2523.5,0.4338]
[1730070531234,1.32869,2523.8,2523.7,0.39669]
[1730070531423,0.3967,2523.7,2523.6,0.3967]
[1730070531819,3.41052901,2523.8,2523.3,3.2078]
[1730070532039,2.87524901,2523.6,2523.5,0.39673]
[1730070532226,0.39673,2523.5,2523.4,0.39673]
[1730070532434,1.54033936,2523.5,2523.4,0.39673]
[1730070532623,1.14360936,2523.5,2523.3,3.2078]
[1730070532823,1.54034936,2523.4,2523.3,0.39675]
[1730070533625,0.39677,2523.3,2523.2,0.39677]
[1730070533834,1.54037936,2523.3,2523.2,0.39677]
[1730070534536,0.39677,2523.3,2523.2,0.39677]
[1730070535029,0.39677,2523.2,2523.1,0.4292]
[1730070535330,0.3968,2523.0,2522.9,0.39681]
[1730070536422,0.3968,2523.0,2522.8,0.8352]
[1730070536423,0.39682,2522.9,2522.8,1.23203]
[1730070540846,2.87479984,2523.0,2522.9,0.39682]
[1730070541228,6.08255984,2523.3,2522.9,4.19986]
[1730070541433,1.32877,2523.3,2523.2,0.39677]
[1730070541833,0.932,2523.4,2523.2,3.9632]
[1730070542030,0.932,2523.4,2523.3,1.69286]
[1730070542542,0.3967,2523.7,2523.6,0.39671]
[1730070542735,1.3287,2523.7,2523.6,0.39671]
[1730070544640,0.932,2523.7,2523.6,0.39671]
[1730070546144,1.32869,2523.7,2523.6,0.39671]
[1730070547945,2.87467984,2523.8,2523.7,0.39669]
[1730070548135,3.40998984,2523.8,2523.4,0.99186]
[1730070548332,0.3967,2523.7,2523.6,0.3967]
[1730070549241,2.47798984,2523.8,2523.3,5.49579]
[1730070549443,0.932,2523.7,2523.4,0.99186]
[1730070549644,2.47798984,2523.8,2523.4,0.99186]
[1730070549842,3.60447,2523.9,2523.8,0.39668]
[1730070550049,1.32865,2524.0,2523.8,0.39668]
[1730070550241,0.932,2524.0,2523.9,0.84626]
[1730070550442,0.4075,2524.1,2524.0,0.39665]
[1730070550636,0.4075,2524.1,2523.9,0.4496]
[1730070550637,2.87459984,2524.3,2524.2,0.39662]
[1730070550941,3.80659984,2524.3,2524.2,0.39662]
[1730070551148,0.39662,2524.2,2524.1,0.39662]
[1730070551445,0.39662,2524.2,2524.1,0.80412]
[1730070552151,0.39665,2524.0,2523.9,0.84626]
[1730070552447,0.39665,2524.0,2523.9,0.4496]
[1730070552648,2.87463984,2524.0,2523.9,0.4496]
[1730070552947,0.39668,2523.8,2523.7,0.8808]
[1730070553151,0.83527,2523.9,2523.8,0.39668]
[1730070557643,0.83526,2523.9,2523.8,0.39668]
[1730070558348,0.39668,2523.8,2523.7,1.69918]
[1730070558550,1.54014028,2523.8,2523.7,1.69918]
[1730070558946,1.14346028,2523.8,2523.7,1.69918]
[1730070559147,1.54014028,2523.8,2523.7,1.69918]
[1730070559755,1.14346028,2523.8,2523.7,1.69918]
[1730070560250,1.54014028,2523.8,2523.7,1.26418]
[1730070561153,1.14346028,2523.8,2523.7,1.26419]
[1730070563559,1.14346028,2523.8,2523.7,0.8675]
[1730070563755,1.14346028,2523.8,2523.7,1.26419]
[1730070567759,1.54014028,2523.8,2523.7,1.26419]
[1730070568354,1.14346028,2523.8,2523.7,1.26419]
[1730070569557,1.54014028,2523.8,2523.7,1.26419]
[1730070569760,1.14346028,2523.8,2523.7,1.26419]
[1730070570660,1.54014028,2523.8,2523.7,1.26419]
[1730070571162,1.14346028,2523.8,2523.7,1.26419]
[1730070571853,1.54014028,2523.8,2523.7,1.26419]
[1730070572056,1.14346028,2523.8,2523.7,1.26419]
[1730070572258,0.39664,2524.1,2524.0,0.39665]
[1730070572457,3.6312,2524.7,2524.1,0.99159]
[1730070572651,0.3966,2524.4,2524.3,0.39659]
[1730070572848,1.14346028,2524.4,2524.2,0.8673]
[1730070573063,1.54006028,2524.3,2524.2,1.2639]
[1730070573265,1.14346028,2524.3,2524.2,1.2639]
[1730070573566,1.54006028,2524.3,2524.2,1.2639]
[1730070574256,1.14346028,2524.3,2524.2,1.2639]
[1730070574869,1.54006028,2524.3,2524.2,1.2639]
[1730070575952,0.39662,2524.2,2524.1,0.4507]
[1730070576159,0.39665,2524.0,2523.9,0.4415]
[1730070576358,1.54011028,2524.0,2523.9,0.4415]
[1730070577761,2.47511028,2524.0,2523.9,0.4415]
[1730070578465,1.33165,2524.0,2523.9,0.4415]
[1730070578863,1.33165,2524.0,2523.9,0.83816]
[1730070579070,0.82323,2524.2,2524.1,0.39663]
[1730070579264,0.39663,2524.1,2524.0,0.39664]
[1730070579463,0.39665,2524.0,2523.9,0.83815]
[1730070580360,0.39664,2524.1,2524.0,0.39663]
[1730070580561,1.3616,2524.2,2523.9,0.4415]
[1730070580968,0.39664,2524.1,2524.0,0.39664]
[1730070581974,0.39665,2524.0,2523.9,0.83815]
[1730070582169,1.3616,2524.2,2523.9,0.4415]
[1730070582469,0.39665,2524.0,2523.9,0.83815]
[1730070582871,0.39664,2524.1,2524.0,0.39664]
[1730070583567,1.3616,2524.2,2523.9,0.4415]
[1730070583869,0.39663,2524.1,2524.0,0.39665]
[1730070584770,0.39665,2524.0,2523.9,0.83815]
[1730070585068,0.39665,2524.0,2523.9,0.4415]
[1730070585568,2.47737099,2524.1,2523.8,0.427]
[1730070585765,0.39666,2523.9,2523.8,0.427]
[1730070589877,0.39666,2523.9,2523.8,0.82368]
[1730070590075,0.39666,2523.9,2523.8,0.427]
[1730070590275,3.46898099,2524.1,2523.7,0.4398]
[1730070590580,0.83348,2523.8,2523.7,0.4398]
[1730070590873,0.83348,2523.8,2523.7,0.83649]
[1730070591278,0.83348,2523.8,2523.7,0.4398]
[1730070591880,0.83348,2523.8,2523.6,0.4274]
[1730070591881,0.39669,2523.7,2523.6,0.4274]
[1730070592174,0.39669,2523.7,2523.5,0.84452]
[1730070592175,0.39671,2523.6,2523.5,0.4478]
[1730070592373,3.44037099,2523.7,2523.4,3.60454]
[1730070592374,0.39673,2523.5,2523.4,3.60454]
[1730070593480,0.39673,2523.5,2523.4,0.39674]
[1730070594277,0.39674,2523.4,2523.3,1.24135]
[1730070594684,0.39674,2523.4,2523.3,0.8446]
[1730070595483,0.39674,2523.4,2523.1,0.4498]
[1730070595484,0.39677,2523.2,2523.1,0.4498]
[1730070596583,0.39679,2523.1,2523.0,0.8559]
[1730070597193,0.39679,2523.1,2523.0,0.4333]
[1730070598991,0.39682,2522.9,2522.8,3.6304]
[1730070600490,0.39682,2522.9,2522.8,4.02724]
[1730070601288,0.39681,2523.0,2522.9,0.3968]
[1730070601490,0.39681,2523.0,2522.9,0.8067]
[1730070604483,1.54054829,2523.0,2522.9,0.8067]
[1730070605697,1.54054829,2523.0,2522.9,0.4099]
[1730070607085,1.54054829,2523.0,2522.9,0.80672]
[1730070610900,1.54054829,2523.0,2522.9,0.4099]
[1730070613104,2.50354829,2523.0,2522.9,0.4099]
[1730070615007,2.50354829,2523.0,2522.9,0.80672]
[1730070615405,2.50354829,2523.0,2522.9,0.4099]
[1730070617205,2.50354829,2523.0,2522.9,0.80672]
[1730070617206,0.963,2523.0,2522.9,0.80672]
[1730070617403,2.50353829,2523.0,2522.9,0.4099]
[1730070618209,2.47753829,2523.0,2522.9,0.4099]
[1730070619606,2.47753829,2523.0,2522.9,0.80672]
[1730070620508,2.47753829,2523.0,2522.9,0.4099]
[1730070624303,1.54053829,2523.0,2522.9,0.4099]
[1730070624511,2.47753829,2523.0,2522.9,0.4099]
[1730070627913,2.47753829,2523.0,2522.7,0.4262]
[1730070627914,2.08073829,2523.0,2522.7,0.4262]
[1730070628123,1.54057829,2522.8,2522.7,0.4262]
[1730070629618,1.54057829,2522.8,2522.7,0.82305]
[1730070629811,1.54057829,2522.8,2522.7,0.4262]
[1730070632809,1.54057829,2522.8,2522.7,0.82305]
[1730070633318,3.60458,2523.2,2523.1,0.39679]
[1730070633614,1.14373829,2523.3,2523.1,1.14373829]
[1730070633809,5.68526829,2523.5,2523.3,0.39674]
[1730070634009,1.14373829,2523.4,2523.3,0.39676]
[1730070634209,1.14373829,2523.4,2523.2,1.2834]
[1730070634412,1.54049829,2523.3,2523.2,1.68016]
[1730070634621,1.54049829,2523.3,2523.2,1.2834]
[1730070635325,1.54049829,2523.3,2523.2,1.68017]
[1730070635326,0.39676,2523.3,2523.2,1.68017]
[1730070635507,1.54049829,2523.3,2523.2,1.68017]
[1730070636422,1.54049829,2523.3,2523.2,1.2834]
[1730070637015,1.54049829,2523.3,2523.2,1.68017]
[1730070637515,1.54049829,2523.3,2523.2,1.2834]
[1730070637715,1.54049829,2523.3,2523.2,1.68017]
[1730070640319,0.39676,2523.3,2523.2,1.68017]
[1730070643529,1.54048829,2523.4,2523.3,0.39676]
[1730070646525,1.54048829,2523.4,2523.2,1.2834]
[1730070646526,0.39676,2523.3,2523.2,1.68016]
[1730070646721,1.54049829,2523.3,2523.2,1.68016]
[1730070650040,1.54049829,2523.3,2523.2,1.2834]
[1730070650237,1.54049829,2523.3,2523.0,3.6046]
[1730070650238,0.39679,2523.1,2523.0,3.6046]
[1730070650430,1.54052829,2523.1,2523.0,3.6046]
[1730070650630,1.54052829,2523.1,2523.0,3.2078]
[1730070650928,5.10693829,2523.1,2522.7,0.39684]
[1730070651124,1.54057829,2522.8,2522.7,0.39684]
[1730070651433,1.54057829,2522.8,2522.7,1.54057829]
[1730070653244,1.54057829,2522.8,2522.7,1.14373829]
[1730070653439,0.39685,2522.7,2522.6,4.87775]
[1730070654531,0.39685,2522.7,2522.6,6.02148829]
[1730070654725,1.14373829,2522.8,2522.6,5.62463829]
[1730070654941,0.39685,2522.8,2522.7,0.39684]
[1730070655335,0.39685,2522.8,2522.7,1.54057829]
[1730070656037,0.39685,2522.8,2522.7,0.39684]
[1730070656237,0.39683,2523.0,2522.9,0.39681]
[1730070656436,1.54056829,2523.0,2522.9,0.39681]
[1730070657149,0.3968,2523.1,2523.0,0.39679]
[1730070657441,3.2078,2523.7,2523.1,0.39679]
[1730070657748,3.2078,2523.7,2523.3,0.39674]
[1730070657749,1.54049829,2523.4,2523.3,0.39674]
[1730070658336,1.14373829,2523.4,2523.3,0.39674]
[1730070658543,1.54047829,2523.4,2523.3,0.39674]
[1730070658739,1.14373829,2523.4,2523.2,3.2078]
[1730070659036,0.39677,2523.2,2523.1,0.4463]
[1730070659239,0.3968,2523.0,2522.9,3.6046]
[1730070659445,1.54053829,2523.0,2522.9,3.6046]
[1730070660341,1.54053829,2523.0,2522.9,0.3968]
[1730070661235,2.07973829,2523.2,2522.9,5.10773829]
[1730070661436,1.96339829,2523.3,2523.2,0.39677]
[1730070661732,1.54049829,2523.4,2523.3,0.39674]
[1730070663737,1.14373829,2523.4,2523.2,1.14373829]
[1730070664046,1.54050829,2523.3,2523.2,0.39676]
[1730070664438,0.39677,2523.3,2523.2,0.39676]
[1730070664941,0.3968,2523.1,2523.0,0.39678]
[1730070665244,0.83108,2523.2,2523.1,0.39679]
[1730070666745,0.3968,2523.1,2523.0,0.39679]
[1730070677157,0.3968,2523.1,2523.0,0.81969]
[1730070677364,0.4343,2523.3,2523.0,0.4229]
[1730070677563,0.39676,2523.4,2523.3,0.39674]
[1730070678767,1.356,2523.5,2523.3,0.39674]
[1730070678768,1.75274,2523.5,2523.4,0.39674]
[1730070678952,0.82874,2523.5,2523.4,0.81964]
[1730070680458,0.82874,2523.5,2523.4,0.4229]
[1730070681659,0.432,2523.5,2523.3,0.4316]
[1730070681864,1.41196,2523.4,2523.1,0.39678]
[1730070682162,0.39679,2523.2,2523.1,0.39678]
[1730070683362,0.39679,2523.1,2523.0,1.66388]
[1730070683554,0.81509,2523.1,2523.0,1.66388]
[1730070684455,0.81509,2523.1,2523.0,0.80268]
[1730070685866,0.81509,2523.1,2522.9,3.2078]
[1730070685867,0.4183,2523.1,2522.9,3.2078]
[1730070686165,0.3968,2523.0,2522.9,3.60462]
[1730070686666,0.39682,2522.9,2522.8,0.80452]
[1730070686868,1.54060255,2522.9,2522.8,0.80452]
[1730070687459,1.54060255,2522.9,2522.8,0.4077]
[1730070688161,0.39684,2522.8,2522.7,1.23215]
[1730070688369,1.54062255,2522.8,2522.7,1.23215]
[1730070689267,1.54062255,2522.8,2522.7,0.8353]
[1730070690067,1.54062255,2522.8,2522.6,3.60466]
[1730070690068,5.10778255,2522.8,2522.6,3.60466]
[1730070690262,1.95523255,2522.7,2522.6,3.60466]
[1730070695775,1.95523255,2522.7,2522.6,4.74844255]
[1730070696676,1.95523255,2522.7,2522.6,1.54064255]
[1730070697063,1.95523255,2522.7,2522.6,4.74844255]
[1730070700776,1.95523255,2522.7,2522.6,3.60466]
[1730070700978,0.81145,2522.7,2522.6,4.74844255]
[1730070701569,0.81145,2522.7,2522.6,1.54064255]
[1730070701777,0.81145,2522.7,2522.6,4.74844255]
[1730070703985,0.81145,2522.7,2522.6,1.54064255]
[1730070704379,0.81145,2522.7,2522.6,4.74844255]
[1730070704787,0.81145,2522.7,2522.6,1.54064255]
[1730070704985,0.81145,2522.7,2522.6,4.74844255]
[1730070708085,1.95523255,2522.7,2522.6,4.74844255]
[1730070708286,1.95523255,2522.7,2522.6,3.60466]
[1730070711385,1.55838255,2522.7,2522.6,3.60466]
[1730070711584,1.95523255,2522.7,2522.6,3.60466]
[1730070711889,1.95523255,2522.7,2522.6,0.39686]
[1730070712092,1.95523255,2522.7,2522.6,3.60466]
[1730070713887,1.95523255,2522.7,2522.6,0.39686]
[1730070714087,1.95523255,2522.7,2522.6,3.60466]
[1730070714992,1.55838255,2522.7,2522.6,3.60466]
[1730070715493,1.95523255,2522.7,2522.6,3.60466]
[1730070715898,1.95523255,2522.7,2522.6,0.39686]
[1730070716582,1.95523255,2522.7,2522.6,3.60466]
[1730070716984,1.55838255,2522.7,2522.6,3.60466]
[1730070717892,1.95523255,2522.7,2522.6,3.60466]
[1730070718584,1.55838255,2522.7,2522.6,3.60466]
[1730070719095,1.95523255,2522.7,2522.6,3.60466]
[1730070721697,1.95523255,2522.7,2522.6,0.39686]
[1730070722086,1.95523255,2522.7,2522.6,3.60466]
[1730070722591,1.55838255,2522.7,2522.6,3.60466]
[1730070722896,1.95523255,2522.7,2522.6,3.60466]
[1730070723099,1.95523255,2522.7,2522.6,0.39686]
[1730070723800,1.55838255,2522.7,2522.6,3.60466]
[1730070724691,2.04078255,2523.2,2522.9,0.39682]
[1730070724893,0.39676,2523.4,2523.3,0.39673]
[1730070725096,1.54054255,2523.4,2523.3,0.39673]
[1730070726195,2.43754255,2523.4,2523.3,0.39673]
[1730070726900,0.39678,2523.3,2523.2,0.39677]
[1730070727199,1.54056255,2523.3,2523.2,0.39677]
[1730070733008,1.14378255,2523.3,2523.0,1.56058255]
[1730070733313,1.39758,2523.6,2523.0,0.8136]
[1730070733314,1.14378255,2523.1,2523.0,0.8136]
[1730070734909,1.14378255,2523.1,2523.0,1.95738255]
[1730070737311,1.14378255,2523.1,2523.0,2.36418255]
[1730070738115,1.14378255,2523.1,2523.0,2.78398255]
[1730070738916,1.54057255,2523.1,2523.0,2.78398255]
[1730070740818,1.54057255,2523.1,2523.0,1.6402]
[1730070743515,1.54057255,2523.1,2523.0,2.78398255]
[1730070745513,1.54057255,2523.1,2523.0,1.2434]
[1730070747215,1.54057255,2523.1,2523.0,1.6402]
[1730070749314,1.54057255,2523.1,2523.0,4.848]
[1730070750919,1.54057255,2523.1,2523.0,3.2078]
[1730070750920,5.50377255,2523.1,2523.0,3.2078]
[1730070751127,0.39684,2522.8,2522.7,0.39684]
[1730070751422,1.54062255,2522.8,2522.7,0.39684]
[1730070754119,1.14378255,2522.8,2522.6,3.2078]
[1730070754324,1.95163255,2522.7,2522.6,3.60467]
[1730070756526,1.95163255,2522.7,2522.6,0.39687]
[1730070756728,1.55478255,2522.7,2522.6,3.60467]
[1730070756927,2.03978255,2522.9,2522.8,0.39684]
[1730070757223,0.896,2522.9,2522.8,0.39684]
[1730070757422,2.03978255,2522.9,2522.8,0.39684]
[1730070757729,2.03978255,2522.9,2522.8,0.84084]
[1730070760129,2.43660255,2522.9,2522.8,0.84084]
[1730070761426,2.03978255,2522.9,2522.8,0.84084]
[1730070761931,1.2928,2523.1,2523.0,0.3968]
[1730070762131,2.43658255,2523.1,2523.0,0.3968]
[1730070762927,1.54058255,2523.1,2523.0,0.3968]
[1730070767236,1.3119,2523.3,2523.2,0.39677]
[1730070767536,1.55968255,2523.3,2523.2,0.39677]
[1730070768038,1.95644255,2523.3,2523.2,0.39677]
[1730070769132,1.55968255,2523.3,2523.1,0.4348]
[1730070769332,1.55968255,2523.3,2522.9,5.03535]
[1730070769333,0.3968,2523.1,2523.0,0.39679]
[1730070769533,1.54058255,2523.1,2523.0,0.39679]
[1730070770443,1.54057255,2523.1,2523.0,0.39679]
[1730070772539,1.54057255,2523.1,2523.0,0.3968]
[1730070772738,1.54057255,2523.1,2522.9,4.4658]
[1730070772739,0.3968,2523.0,2522.9,3.2078]
[1730070773041,0.3968,2523.0,2522.8,0.39683]
[1730070773042,0.39682,2522.9,2522.8,0.39683]
[1730070773253,1.54060255,2522.9,2522.8,0.39683]
[1730070774243,1.14378255,2522.9,2522.6,3.2078]
[1730070774442,1.14378255,2522.7,2522.6,3.2078]
[1730070774737,1.14378255,2522.7,2522.6,3.60465]
[1730070774738,1.54063255,2522.7,2522.6,3.60465]
[1730070780848,1.14378255,2522.7,2522.6,4.74843255]
[1730070781049,1.54062255,2522.8,2522.7,0.39685]
[1730070781846,1.54061255,2522.9,2522.8,0.39684]
[1730070782052,1.54059255,2523.0,2522.9,0.39682]
[1730070782246,1.29279,2523.1,2523.0,0.3968]
[1730070782441,1.54057255,2523.1,2523.0,0.3968]
[1730070784349,1.14378255,2523.1,2522.9,0.882]
[1730070784544,1.97058255,2523.0,2522.9,1.27881]
[1730070798250,1.97058255,2523.0,2522.9,0.882]
[1730070798757,1.97058255,2523.0,2522.9,0.4485]
[1730070799058,1.97058255,2523.0,2522.9,0.84532]
[1730070800161,1.97058255,2523.0,2522.8,0.4224]
[1730070800456,1.54060255,2522.9,2522.8,0.4224]
[1730070800652,0.39684,2522.8,2522.7,0.4425]
[1730070800853,1.54062255,2522.8,2522.7,0.4425]
[1730070801550,1.54062255,2522.8,2522.7,0.83935]
[1730070802357,1.54062255,2522.8,2522.7,0.4425]
[1730070802554,1.54062255,2522.8,2522.7,0.83935]
[1730070806255,1.54062255,2522.8,2522.7,0.4425]
[1730070806451,1.14378255,2522.8,2522.6,3.6455]
[1730070806657,0.39687,2522.6,2522.5,0.4093]
[1730070806852,1.54065255,2522.6,2522.5,0.4093]
[1730070807053,0.39688,2522.5,2522.4,0.4226]
[1730070807254,1.54066255,2522.5,2522.4,0.4226]
[1730070808659,6.2515651,2522.5,2521.9,3.2078]
[1730070808859,0.39699,2521.8,2521.7,0.75019756]
[1730070809064,0.39699,2521.8,2521.4,0.4159]
[1730070809065,0.39704,2521.5,2521.4,0.4159]
[1730070809258,1.54082255,2521.5,2521.4,0.81296]
[1730070810365,1.54082255,2521.5,2521.4,0.4159]
[1730070810570,1.54082255,2521.5,2521.4,0.81296]
[1730070811159,1.54082255,2521.5,2521.4,0.4159]
[1730070811360,0.99265,2521.4,2521.0,0.39711]
[1730070811568,1.54088255,2521.1,2521.0,0.39711]
[1730070812661,1.14378255,2521.1,2521.0,0.39711]
[1730070812864,1.54088255,2521.1,2521.0,0.39711]
[1730070813064,1.14378255,2521.1,2521.0,0.39711]
[1730070813665,1.54088255,2521.1,2521.0,0.39711]
[1730070814166,1.14378255,2521.1,2521.0,0.39711]
[1730070816774,1.29207,2521.3,2521.2,0.39709]
[1730070817070,1.29299,2521.9,2521.3,0.99269]
[1730070817264,0.39699,2521.9,2521.8,0.39699]
[1730070817460,1.29299,2521.9,2521.8,0.39699]
[1730070817657,0.4163,2522.4,2522.1,0.39694]
[1730070817860,1.3258,2522.3,2521.8,3.2078]
[1730070818066,1.3258,2522.3,2522.0,0.39696]
[1730070818067,0.39695,2522.1,2522.0,0.39696]
[1730070818462,3.9648,2522.1,2521.8,3.2078]
[1730070818660,2.47935057,2522.0,2521.9,0.39697]
[1730070819467,2.87631057,2522.0,2521.9,0.39697]
[1730070819866,0.39701,2521.7,2521.6,0.39702]
[1730070821166,0.39701,2521.7,2521.5,3.2078]
[1730070821167,3.77235057,2521.8,2521.7,0.39701]
[1730070823374,3.37535057,2521.8,2521.4,1.2774]
[1730070823566,0.39702,2521.7,2521.6,0.39701]
[1730070823872,3.77236057,2521.8,2521.7,0.39701]
[1730070824064,3.77236057,2521.8,2521.7,3.60481]
[1730070826175,0.896,2521.8,2521.7,3.60481]
[1730070834390,1.29299,2521.8,2521.7,3.60481]
[1730070835092,0.896,2521.8,2521.7,3.60481]
[1730070840395,0.39699,2521.9,2521.8,0.39699]
[1730070840598,1.54121659,2521.9,2521.8,0.80699]
[1730070842896,1.54121659,2521.9,2521.8,1.24769]
[1730070844693,1.54121659,2521.9,2521.4,1.58262659]
[1730070844694,5.10982659,2521.9,2521.4,3.6462]
[1730070844895,1.54126659,2521.5,2521.4,0.83545]
[1730070846000,1.54126659,2521.5,2521.4,0.39705]
[1730070847599,0.39706,2521.4,2521.3,1.27866]
[1730070847801,1.54128659,2521.4,2521.3,1.27866]
[1730070850204,0.3971,2521.2,2521.1,0.39709]
[1730070850398,1.54132659,2521.2,2521.1,0.39709]
[1730070851602,1.54132659,2521.2,2521.0,1.71671]
[1730070851603,0.3971,2521.1,2521.0,1.71671]
[1730070851905,1.94792659,2521.1,2521.0,1.71671]
[1730070852503,1.94792659,2521.1,2521.0,0.39711]
[1730070853411,5.51722659,2521.1,2520.9,0.4286]
[1730070853707,5.51722659,2521.1,2520.9,0.82573]
[1730070853708,2.43634659,2521.0,2520.9,0.82573]
[1730070853903,2.43634659,2521.0,2520.9,0.4286]
[1730070854107,0.39716,2520.8,2520.7,0.39715]
[1730070854313,1.54138659,2520.8,2520.7,0.39715]
[1730070855613,1.54138659,2520.8,2520.7,0.39717]
[1730070855909,1.14422659,2520.8,2520.7,0.39717]
[1730070857312,0.895,2521.0,2520.7,4.74919659]
[1730070857613,0.895,2521.0,2520.9,0.39713]
[1730070857614,0.913,2521.0,2520.9,0.39713]
[1730070857913,2.05722659,2521.0,2520.9,0.39713]
[1730070858110,1.14422659,2521.0,2520.9,0.39713]
[1730070862109,1.14422659,2521.0,2520.9,1.26543]
[1730070864019,1.54134659,2521.0,2520.9,1.26543]
[1730070865019,1.14422659,2521.0,2520.9,1.26543]
[1730070865611,1.54134659,2521.0,2520.9,1.26543]
[1730070866621,1.14422659,2521.0,2520.9,1.26543]
[1730070867722,1.54134659,2521.0,2520.9,1.26543]
[1730070868314,0.4459,2521.3,2521.2,0.39709]
[1730070868519,2.90019659,2521.3,2521.2,0.39709]
[1730070869220,2.50312659,2521.3,2521.2,0.39709]
[1730070869515,2.90019659,2521.3,2521.2,0.39709]
[1730070877825,2.50312659,2521.3,2521.2,0.39709]
[1730070878320,2.90019659,2521.3,2521.2,0.39709]
[1730070884333,4.20038,2521.6,2521.5,0.39703]
[1730070884334,0.39703,2521.6,2521.5,0.39703]
[1730070884522,0.913,2521.4,2521.3,2.41909659]
[1730070884830,2.05722659,2521.4,2521.3,2.41909659]
[1730070885020,2.05722659,2521.4,2521.3,6.38549659]
[1730070885220,2.05722659,2521.4,2521.3,5.24127]
[1730070886429,2.45428659,2521.4,2521.3,5.24127]
[1730070887429,2.45428659,2521.4,2521.3,1.27487]
[1730070888626,1.54128659,2521.4,2521.3,1.27487]
[1730070892833,1.97188659,2521.4,2521.3,1.27487]
[1730070896735,1.57482659,2521.4,2521.3,1.27487]
[1730070897137,0.895,2521.6,2521.3,1.27487]
[1730070897430,1.292,2521.8,2521.7,0.39701]
[1730070897640,2.43622659,2521.8,2521.7,0.39701]
[1730070902139,1.54122659,2521.8,2521.7,0.39701]
[1730070902340,1.73829,2521.9,2521.5,4.20041]